{"text_format":"1","workbook":"xlsx","n_sheets":2,"sheets":["Start","Tabellen"],"not_rendered":{"charts":0,"images":0,"macros":0,"external_links":0,"defined_names":44,"comments":1,"pivot_tables":0},"unopened":[],"bounds":{"document_bytes":16777216,"sheet_cells":100000,"rows_first":2000,"rows_last":500,"rows_between":2000,"halvings":0,"cell_chars":16384,"cell_head_chars":4096},"cells_cut":0,"cells_raw":0,"read":"whole","date_system":"1900"}

{"sheet":"Start","index":0,"n_rows":25,"n_cols":3,"rows_kept":25,"cut":false,"hidden":false,"merged":[]}
[null,"Gemischt","Neu auslosen"]
["Robert",{"$f":"_xlfn.LET(_xlpm.n,_xlfn.UNIQUE($A$2:$A$100),_xlpm.na,_xlfn._xlws.FILTER(_xlpm.n,_xlpm.n<>0),_xlpm.an,ROWS(_xlpm.na),_xlpm.r,_xlfn.RANDARRAY(_xlpm.an),_xlpm.so,_xlfn.SORTBY(_xlpm.na,_xlpm.r),IF(C2=\"nein\",_xlfn.ANCHORARRAY(B2),_xlpm.so))","v":"Frank"},"nein"]
["Volker","Ralf"]
["Siggi","Robert"]
["Anja","Erich"]
["Vincent","Manuel"]
["Ralf","Otto"]
["Erich","Anja"]
["Rene","Sasha"]
["Nicole","Volker"]
["Frank","Klaus"]
["Sasha","Stefan"]
["Klaus","Rosi P."]
["Manuel","Aline"]
["Christian","Werner"]
["Kerstin","Achim"]
["Dirk","Nicole"]
["Kevin","Vincent"]
["Aline","Dirk"]
["Rosi N.","Kerstin"]
["Rosi P.","Rene"]
["Stefan","Siggi"]
["Werner","Kevin"]
["Achim","Rosi N."]
["Otto","Christian"]

{"sheet":"Tabellen","index":1,"n_rows":22,"n_cols":20,"rows_kept":22,"cut":false,"hidden":false,"merged":[]}
[]
[]
[]
[]
[]
[]
[]
[{"$f":"_xlfn.LET(_xlpm.naa,_xlfn.ANCHORARRAY(Start!$B$2),_xlpm.anz,ROWS(_xlpm.naa)/4,_xlpm.na,OFFSET(_xlpm.naa,6*INT((COLUMN()-1)/6),,6),_xlpm.i,_xlfn.SEQUENCE((_xlpm.anz^2-_xlpm.anz)/2),_xlpm.ii,_xlfn.SEQUENCE(6),_xlpm.mp,_xlfn.MAP(_xlpm.i,_xlfn.LAMBDA(_xlpm.a,6-INT((1+SQRT(1+8*(16-_xlpm.a-1)))/2))),_xlpm.in,INDEX(_xlpm.na,_xlpm.mp),_xlpm.in)","v":"Frank"},{"$f":"_xlfn.LET(_xlpm.naa,_xlfn.ANCHORARRAY(Start!$B$2),_xlpm.ar,OFFSET(_xlpm.naa,6*INT((COLUMN()-2)/6),,6),_xlpm.ze,COUNTIF(A$8:A8,A8),_xlpm.in,INDEX(_xlpm.ar,_xlpm.ze+ROWS(_xlfn.UNIQUE(A$8:A8))),_xlpm.in)","v":"Ralf"},null,null,null,null,{"$f":"_xlfn.LET(_xlpm.naa,_xlfn.ANCHORARRAY(Start!$B$2),_xlpm.anz,ROWS(_xlpm.naa)/4,_xlpm.na,OFFSET(_xlpm.naa,6*INT((COLUMN()-1)/6),,6),_xlpm.i,_xlfn.SEQUENCE((_xlpm.anz^2-_xlpm.anz)/2),_xlpm.ii,_xlfn.SEQUENCE(6),_xlpm.mp,_xlfn.MAP(_xlpm.i,_xlfn.LAMBDA(_xlpm.a,6-INT((1+SQRT(1+8*(16-_xlpm.a-1)))/2))),_xlpm.in,INDEX(_xlpm.na,_xlpm.mp),_xlpm.in)","v":"Anja"},{"$f":"_xlfn.LET(_xlpm.naa,_xlfn.ANCHORARRAY(Start!$B$2),_xlpm.ar,OFFSET(_xlpm.naa,6*INT((COLUMN()-2)/6),,6),_xlpm.ze,COUNTIF(G$8:G8,G8),_xlpm.in,INDEX(_xlpm.ar,_xlpm.ze+ROWS(_xlfn.UNIQUE(G$8:G8))),_xlpm.in)","v":"Sasha"},null,null,null,null,{"$f":"_xlfn.LET(_xlpm.naa,_xlfn.ANCHORARRAY(Start!$B$2),_xlpm.anz,ROWS(_xlpm.naa)/4,_xlpm.na,OFFSET(_xlpm.naa,6*INT((COLUMN()-1)/6),,6),_xlpm.i,_xlfn.SEQUENCE((_xlpm.anz^2-_xlpm.anz)/2),_xlpm.ii,_xlfn.SEQUENCE(6),_xlpm.mp,_xlfn.MAP(_xlpm.i,_xlfn.LAMBDA(_xlpm.a,6-INT((1+SQRT(1+8*(16-_xlpm.a-1)))/2))),_xlpm.in,INDEX(_xlpm.na,_xlpm.mp),_xlpm.in)","v":"Aline"},{"$f":"_xlfn.LET(_xlpm.naa,_xlfn.ANCHORARRAY(Start!$B$2),_xlpm.ar,OFFSET(_xlpm.naa,6*INT((COLUMN()-2)/6),,6),_xlpm.ze,COUNTIF(M$8:M8,M8),_xlpm.in,INDEX(_xlpm.ar,_xlpm.ze+ROWS(_xlfn.UNIQUE(M$8:M8))),_xlpm.in)","v":"Werner"},null,null,null,null,{"$f":"_xlfn.LET(_xlpm.naa,_xlfn.ANCHORARRAY(Start!$B$2),_xlpm.anz,ROWS(_xlpm.naa)/4,_xlpm.na,OFFSET(_xlpm.naa,6*INT((COLUMN()-1)/6),,6),_xlpm.i,_xlfn.SEQUENCE((_xlpm.anz^2-_xlpm.anz)/2),_xlpm.ii,_xlfn.SEQUENCE(6),_xlpm.mp,_xlfn.MAP(_xlpm.i,_xlfn.LAMBDA(_xlpm.a,6-INT((1+SQRT(1+8*(16-_xlpm.a-1)))/2))),_xlpm.in,INDEX(_xlpm.na,_xlpm.mp),_xlpm.in)","v":"Kerstin"},{"$f":"_xlfn.LET(_xlpm.naa,_xlfn.ANCHORARRAY(Start!$B$2),_xlpm.ar,OFFSET(_xlpm.naa,6*INT((COLUMN()-2)/6),,6),_xlpm.ze,COUNTIF(S$8:S8,S8),_xlpm.in,INDEX(_xlpm.ar,_xlpm.ze+ROWS(_xlfn.UNIQUE(S$8:S8))),_xlpm.in)","v":"Rene"}]
["Frank",{"$f":"_xlfn.LET(_xlpm.naa,_xlfn.ANCHORARRAY(Start!$B$2),_xlpm.ar,OFFSET(_xlpm.naa,6*INT((COLUMN()-2)/6),,6),_xlpm.ze,COUNTIF(A$8:A9,A9),_xlpm.in,INDEX(_xlpm.ar,_xlpm.ze+ROWS(_xlfn.UNIQUE(A$8:A9))),_xlpm.in)","v":"Robert"},null,null,null,null,"Anja",{"$f":"_xlfn.LET(_xlpm.naa,_xlfn.ANCHORARRAY(Start!$B$2),_xlpm.ar,OFFSET(_xlpm.naa,6*INT((COLUMN()-2)/6),,6),_xlpm.ze,COUNTIF(G$8:G9,G9),_xlpm.in,INDEX(_xlpm.ar,_xlpm.ze+ROWS(_xlfn.UNIQUE(G$8:G9))),_xlpm.in)","v":"Volker"},null,null,null,null,"Aline",{"$f":"_xlfn.LET(_xlpm.naa,_xlfn.ANCHORARRAY(Start!$B$2),_xlpm.ar,OFFSET(_xlpm.naa,6*INT((COLUMN()-2)/6),,6),_xlpm.ze,COUNTIF(M$8:M9,M9),_xlpm.in,INDEX(_xlpm.ar,_xlpm.ze+ROWS(_xlfn.UNIQUE(M$8:M9))),_xlpm.in)","v":"Achim"},null,null,null,null,"Kerstin",{"$f":"_xlfn.LET(_xlpm.naa,_xlfn.ANCHORARRAY(Start!$B$2),_xlpm.ar,OFFSET(_xlpm.naa,6*INT((COLUMN()-2)/6),,6),_xlpm.ze,COUNTIF(S$8:S9,S9),_xlpm.in,INDEX(_xlpm.ar,_xlpm.ze+ROWS(_xlfn.UNIQUE(S$8:S9))),_xlpm.in)","v":"Siggi"}]
["Frank",{"$f":"_xlfn.LET(_xlpm.naa,_xlfn.ANCHORARRAY(Start!$B$2),_xlpm.ar,OFFSET(_xlpm.naa,6*INT((COLUMN()-2)/6),,6),_xlpm.ze,COUNTIF(A$8:A10,A10),_xlpm.in,INDEX(_xlpm.ar,_xlpm.ze+ROWS(_xlfn.UNIQUE(A$8:A10))),_xlpm.in)","v":"Erich"},null,null,null,null,"Anja",{"$f":"_xlfn.LET(_xlpm.naa,_xlfn.ANCHORARRAY(Start!$B$2),_xlpm.ar,OFFSET(_xlpm.naa,6*INT((COLUMN()-2)/6),,6),_xlpm.ze,COUNTIF(G$8:G10,G10),_xlpm.in,INDEX(_xlpm.ar,_xlpm.ze+ROWS(_xlfn.UNIQUE(G$8:G10))),_xlpm.in)","v":"Klaus"},null,null,null,null,"Aline",{"$f":"_xlfn.LET(_xlpm.naa,_xlfn.ANCHORARRAY(Start!$B$2),_xlpm.ar,OFFSET(_xlpm.naa,6*INT((COLUMN()-2)/6),,6),_xlpm.ze,COUNTIF(M$8:M10,M10),_xlpm.in,INDEX(_xlpm.ar,_xlpm.ze+ROWS(_xlfn.UNIQUE(M$8:M10))),_xlpm.in)","v":"Nicole"},null,null,null,null,"Kerstin",{"$f":"_xlfn.LET(_xlpm.naa,_xlfn.ANCHORARRAY(Start!$B$2),_xlpm.ar,OFFSET(_xlpm.naa,6*INT((COLUMN()-2)/6),,6),_xlpm.ze,COUNTIF(S$8:S10,S10),_xlpm.in,INDEX(_xlpm.ar,_xlpm.ze+ROWS(_xlfn.UNIQUE(S$8:S10))),_xlpm.in)","v":"Kevin"}]
["Frank",{"$f":"_xlfn.LET(_xlpm.naa,_xlfn.ANCHORARRAY(Start!$B$2),_xlpm.ar,OFFSET(_xlpm.naa,6*INT((COLUMN()-2)/6),,6),_xlpm.ze,COUNTIF(A$8:A11,A11),_xlpm.in,INDEX(_xlpm.ar,_xlpm.ze+ROWS(_xlfn.UNIQUE(A$8:A11))),_xlpm.in)","v":"Manuel"},null,null,null,null,"Anja",{"$f":"_xlfn.LET(_xlpm.naa,_xlfn.ANCHORARRAY(Start!$B$2),_xlpm.ar,OFFSET(_xlpm.naa,6*INT((COLUMN()-2)/6),,6),_xlpm.ze,COUNTIF(G$8:G11,G11),_xlpm.in,INDEX(_xlpm.ar,_xlpm.ze+ROWS(_xlfn.UNIQUE(G$8:G11))),_xlpm.in)","v":"Stefan"},null,null,null,null,"Aline",{"$f":"_xlfn.LET(_xlpm.naa,_xlfn.ANCHORARRAY(Start!$B$2),_xlpm.ar,OFFSET(_xlpm.naa,6*INT((COLUMN()-2)/6),,6),_xlpm.ze,COUNTIF(M$8:M11,M11),_xlpm.in,INDEX(_xlpm.ar,_xlpm.ze+ROWS(_xlfn.UNIQUE(M$8:M11))),_xlpm.in)","v":"Vincent"},null,null,null,null,"Kerstin",{"$f":"_xlfn.LET(_xlpm.naa,_xlfn.ANCHORARRAY(Start!$B$2),_xlpm.ar,OFFSET(_xlpm.naa,6*INT((COLUMN()-2)/6),,6),_xlpm.ze,COUNTIF(S$8:S11,S11),_xlpm.in,INDEX(_xlpm.ar,_xlpm.ze+ROWS(_xlfn.UNIQUE(S$8:S11))),_xlpm.in)","v":"Rosi N."}]
["Frank",{"$f":"_xlfn.LET(_xlpm.naa,_xlfn.ANCHORARRAY(Start!$B$2),_xlpm.ar,OFFSET(_xlpm.naa,6*INT((COLUMN()-2)/6),,6),_xlpm.ze,COUNTIF(A$8:A12,A12),_xlpm.in,INDEX(_xlpm.ar,_xlpm.ze+ROWS(_xlfn.UNIQUE(A$8:A12))),_xlpm.in)","v":"Otto"},null,null,null,null,"Anja",{"$f":"_xlfn.LET(_xlpm.naa,_xlfn.ANCHORARRAY(Start!$B$2),_xlpm.ar,OFFSET(_xlpm.naa,6*INT((COLUMN()-2)/6),,6),_xlpm.ze,COUNTIF(G$8:G12,G12),_xlpm.in,INDEX(_xlpm.ar,_xlpm.ze+ROWS(_xlfn.UNIQUE(G$8:G12))),_xlpm.in)","v":"Rosi P."},null,null,null,null,"Aline",{"$f":"_xlfn.LET(_xlpm.naa,_xlfn.ANCHORARRAY(Start!$B$2),_xlpm.ar,OFFSET(_xlpm.naa,6*INT((COLUMN()-2)/6),,6),_xlpm.ze,COUNTIF(M$8:M12,M12),_xlpm.in,INDEX(_xlpm.ar,_xlpm.ze+ROWS(_xlfn.UNIQUE(M$8:M12))),_xlpm.in)","v":"Dirk"},null,null,null,null,"Kerstin",{"$f":"_xlfn.LET(_xlpm.naa,_xlfn.ANCHORARRAY(Start!$B$2),_xlpm.ar,OFFSET(_xlpm.naa,6*INT((COLUMN()-2)/6),,6),_xlpm.ze,COUNTIF(S$8:S12,S12),_xlpm.in,INDEX(_xlpm.ar,_xlpm.ze+ROWS(_xlfn.UNIQUE(S$8:S12))),_xlpm.in)","v":"Christian"}]
["Ralf",{"$f":"_xlfn.LET(_xlpm.naa,_xlfn.ANCHORARRAY(Start!$B$2),_xlpm.ar,OFFSET(_xlpm.naa,6*INT((COLUMN()-2)/6),,6),_xlpm.ze,COUNTIF(A$8:A13,A13),_xlpm.in,INDEX(_xlpm.ar,_xlpm.ze+ROWS(_xlfn.UNIQUE(A$8:A13))),_xlpm.in)","v":"Robert"},null,null,null,null,"Sasha",{"$f":"_xlfn.LET(_xlpm.naa,_xlfn.ANCHORARRAY(Start!$B$2),_xlpm.ar,OFFSET(_xlpm.naa,6*INT((COLUMN()-2)/6),,6),_xlpm.ze,COUNTIF(G$8:G13,G13),_xlpm.in,INDEX(_xlpm.ar,_xlpm.ze+ROWS(_xlfn.UNIQUE(G$8:G13))),_xlpm.in)","v":"Volker"},null,null,null,null,"Werner",{"$f":"_xlfn.LET(_xlpm.naa,_xlfn.ANCHORARRAY(Start!$B$2),_xlpm.ar,OFFSET(_xlpm.naa,6*INT((COLUMN()-2)/6),,6),_xlpm.ze,COUNTIF(M$8:M13,M13),_xlpm.in,INDEX(_xlpm.ar,_xlpm.ze+ROWS(_xlfn.UNIQUE(M$8:M13))),_xlpm.in)","v":"Achim"},null,null,null,null,"Rene",{"$f":"_xlfn.LET(_xlpm.naa,_xlfn.ANCHORARRAY(Start!$B$2),_xlpm.ar,OFFSET(_xlpm.naa,6*INT((COLUMN()-2)/6),,6),_xlpm.ze,COUNTIF(S$8:S13,S13),_xlpm.in,INDEX(_xlpm.ar,_xlpm.ze+ROWS(_xlfn.UNIQUE(S$8:S13))),_xlpm.in)","v":"Siggi"}]
["Ralf",{"$f":"_xlfn.LET(_xlpm.naa,_xlfn.ANCHORARRAY(Start!$B$2),_xlpm.ar,OFFSET(_xlpm.naa,6*INT((COLUMN()-2)/6),,6),_xlpm.ze,COUNTIF(A$8:A14,A14),_xlpm.in,INDEX(_xlpm.ar,_xlpm.ze+ROWS(_xlfn.UNIQUE(A$8:A14))),_xlpm.in)","v":"Erich"},null,null,null,null,"Sasha",{"$f":"_xlfn.LET(_xlpm.naa,_xlfn.ANCHORARRAY(Start!$B$2),_xlpm.ar,OFFSET(_xlpm.naa,6*INT((COLUMN()-2)/6),,6),_xlpm.ze,COUNTIF(G$8:G14,G14),_xlpm.in,INDEX(_xlpm.ar,_xlpm.ze+ROWS(_xlfn.UNIQUE(G$8:G14))),_xlpm.in)","v":"Klaus"},null,null,null,null,"Werner",{"$f":"_xlfn.LET(_xlpm.naa,_xlfn.ANCHORARRAY(Start!$B$2),_xlpm.ar,OFFSET(_xlpm.naa,6*INT((COLUMN()-2)/6),,6),_xlpm.ze,COUNTIF(M$8:M14,M14),_xlpm.in,INDEX(_xlpm.ar,_xlpm.ze+ROWS(_xlfn.UNIQUE(M$8:M14))),_xlpm.in)","v":"Nicole"},null,null,null,null,"Rene",{"$f":"_xlfn.LET(_xlpm.naa,_xlfn.ANCHORARRAY(Start!$B$2),_xlpm.ar,OFFSET(_xlpm.naa,6*INT((COLUMN()-2)/6),,6),_xlpm.ze,COUNTIF(S$8:S14,S14),_xlpm.in,INDEX(_xlpm.ar,_xlpm.ze+ROWS(_xlfn.UNIQUE(S$8:S14))),_xlpm.in)","v":"Kevin"}]
["Ralf",{"$f":"_xlfn.LET(_xlpm.naa,_xlfn.ANCHORARRAY(Start!$B$2),_xlpm.ar,OFFSET(_xlpm.naa,6*INT((COLUMN()-2)/6),,6),_xlpm.ze,COUNTIF(A$8:A15,A15),_xlpm.in,INDEX(_xlpm.ar,_xlpm.ze+ROWS(_xlfn.UNIQUE(A$8:A15))),_xlpm.in)","v":"Manuel"},null,null,null,null,"Sasha",{"$f":"_xlfn.LET(_xlpm.naa,_xlfn.ANCHORARRAY(Start!$B$2),_xlpm.ar,OFFSET(_xlpm.naa,6*INT((COLUMN()-2)/6),,6),_xlpm.ze,COUNTIF(G$8:G15,G15),_xlpm.in,INDEX(_xlpm.ar,_xlpm.ze+ROWS(_xlfn.UNIQUE(G$8:G15))),_xlpm.in)","v":"Stefan"},null,null,null,null,"Werner",{"$f":"_xlfn.LET(_xlpm.naa,_xlfn.ANCHORARRAY(Start!$B$2),_xlpm.ar,OFFSET(_xlpm.naa,6*INT((COLUMN()-2)/6),,6),_xlpm.ze,COUNTIF(M$8:M15,M15),_xlpm.in,INDEX(_xlpm.ar,_xlpm.ze+ROWS(_xlfn.UNIQUE(M$8:M15))),_xlpm.in)","v":"Vincent"},null,null,null,null,"Rene",{"$f":"_xlfn.LET(_xlpm.naa,_xlfn.ANCHORARRAY(Start!$B$2),_xlpm.ar,OFFSET(_xlpm.naa,6*INT((COLUMN()-2)/6),,6),_xlpm.ze,COUNTIF(S$8:S15,S15),_xlpm.in,INDEX(_xlpm.ar,_xlpm.ze+ROWS(_xlfn.UNIQUE(S$8:S15))),_xlpm.in)","v":"Rosi N."}]
["Ralf",{"$f":"_xlfn.LET(_xlpm.naa,_xlfn.ANCHORARRAY(Start!$B$2),_xlpm.ar,OFFSET(_xlpm.naa,6*INT((COLUMN()-2)/6),,6),_xlpm.ze,COUNTIF(A$8:A16,A16),_xlpm.in,INDEX(_xlpm.ar,_xlpm.ze+ROWS(_xlfn.UNIQUE(A$8:A16))),_xlpm.in)","v":"Otto"},null,null,null,null,"Sasha",{"$f":"_xlfn.LET(_xlpm.naa,_xlfn.ANCHORARRAY(Start!$B$2),_xlpm.ar,OFFSET(_xlpm.naa,6*INT((COLUMN()-2)/6),,6),_xlpm.ze,COUNTIF(G$8:G16,G16),_xlpm.in,INDEX(_xlpm.ar,_xlpm.ze+ROWS(_xlfn.UNIQUE(G$8:G16))),_xlpm.in)","v":"Rosi P."},null,null,null,null,"Werner",{"$f":"_xlfn.LET(_xlpm.naa,_xlfn.ANCHORARRAY(Start!$B$2),_xlpm.ar,OFFSET(_xlpm.naa,6*INT((COLUMN()-2)/6),,6),_xlpm.ze,COUNTIF(M$8:M16,M16),_xlpm.in,INDEX(_xlpm.ar,_xlpm.ze+ROWS(_xlfn.UNIQUE(M$8:M16))),_xlpm.in)","v":"Dirk"},null,null,null,null,"Rene",{"$f":"_xlfn.LET(_xlpm.naa,_xlfn.ANCHORARRAY(Start!$B$2),_xlpm.ar,OFFSET(_xlpm.naa,6*INT((COLUMN()-2)/6),,6),_xlpm.ze,COUNTIF(S$8:S16,S16),_xlpm.in,INDEX(_xlpm.ar,_xlpm.ze+ROWS(_xlfn.UNIQUE(S$8:S16))),_xlpm.in)","v":"Christian"}]
["Robert",{"$f":"_xlfn.LET(_xlpm.naa,_xlfn.ANCHORARRAY(Start!$B$2),_xlpm.ar,OFFSET(_xlpm.naa,6*INT((COLUMN()-2)/6),,6),_xlpm.ze,COUNTIF(A$8:A17,A17),_xlpm.in,INDEX(_xlpm.ar,_xlpm.ze+ROWS(_xlfn.UNIQUE(A$8:A17))),_xlpm.in)","v":"Erich"},null,null,null,null,"Volker",{"$f":"_xlfn.LET(_xlpm.naa,_xlfn.ANCHORARRAY(Start!$B$2),_xlpm.ar,OFFSET(_xlpm.naa,6*INT((COLUMN()-2)/6),,6),_xlpm.ze,COUNTIF(G$8:G17,G17),_xlpm.in,INDEX(_xlpm.ar,_xlpm.ze+ROWS(_xlfn.UNIQUE(G$8:G17))),_xlpm.in)","v":"Klaus"},null,null,null,null,"Achim",{"$f":"_xlfn.LET(_xlpm.naa,_xlfn.ANCHORARRAY(Start!$B$2),_xlpm.ar,OFFSET(_xlpm.naa,6*INT((COLUMN()-2)/6),,6),_xlpm.ze,COUNTIF(M$8:M17,M17),_xlpm.in,INDEX(_xlpm.ar,_xlpm.ze+ROWS(_xlfn.UNIQUE(M$8:M17))),_xlpm.in)","v":"Nicole"},null,null,null,null,"Siggi",{"$f":"_xlfn.LET(_xlpm.naa,_xlfn.ANCHORARRAY(Start!$B$2),_xlpm.ar,OFFSET(_xlpm.naa,6*INT((COLUMN()-2)/6),,6),_xlpm.ze,COUNTIF(S$8:S17,S17),_xlpm.in,INDEX(_xlpm.ar,_xlpm.ze+ROWS(_xlfn.UNIQUE(S$8:S17))),_xlpm.in)","v":"Kevin"}]
["Robert",{"$f":"_xlfn.LET(_xlpm.naa,_xlfn.ANCHORARRAY(Start!$B$2),_xlpm.ar,OFFSET(_xlpm.naa,6*INT((COLUMN()-2)/6),,6),_xlpm.ze,COUNTIF(A$8:A18,A18),_xlpm.in,INDEX(_xlpm.ar,_xlpm.ze+ROWS(_xlfn.UNIQUE(A$8:A18))),_xlpm.in)","v":"Manuel"},null,null,null,null,"Volker",{"$f":"_xlfn.LET(_xlpm.naa,_xlfn.ANCHORARRAY(Start!$B$2),_xlpm.ar,OFFSET(_xlpm.naa,6*INT((COLUMN()-2)/6),,6),_xlpm.ze,COUNTIF(G$8:G18,G18),_xlpm.in,INDEX(_xlpm.ar,_xlpm.ze+ROWS(_xlfn.UNIQUE(G$8:G18))),_xlpm.in)","v":"Stefan"},null,null,null,null,"Achim",{"$f":"_xlfn.LET(_xlpm.naa,_xlfn.ANCHORARRAY(Start!$B$2),_xlpm.ar,OFFSET(_xlpm.naa,6*INT((COLUMN()-2)/6),,6),_xlpm.ze,COUNTIF(M$8:M18,M18),_xlpm.in,INDEX(_xlpm.ar,_xlpm.ze+ROWS(_xlfn.UNIQUE(M$8:M18))),_xlpm.in)","v":"Vincent"},null,null,null,null,"Siggi",{"$f":"_xlfn.LET(_xlpm.naa,_xlfn.ANCHORARRAY(Start!$B$2),_xlpm.ar,OFFSET(_xlpm.naa,6*INT((COLUMN()-2)/6),,6),_xlpm.ze,COUNTIF(S$8:S18,S18),_xlpm.in,INDEX(_xlpm.ar,_xlpm.ze+ROWS(_xlfn.UNIQUE(S$8:S18))),_xlpm.in)","v":"Rosi N."}]
["Robert",{"$f":"_xlfn.LET(_xlpm.naa,_xlfn.ANCHORARRAY(Start!$B$2),_xlpm.ar,OFFSET(_xlpm.naa,6*INT((COLUMN()-2)/6),,6),_xlpm.ze,COUNTIF(A$8:A19,A19),_xlpm.in,INDEX(_xlpm.ar,_xlpm.ze+ROWS(_xlfn.UNIQUE(A$8:A19))),_xlpm.in)","v":"Otto"},null,null,null,null,"Volker",{"$f":"_xlfn.LET(_xlpm.naa,_xlfn.ANCHORARRAY(Start!$B$2),_xlpm.ar,OFFSET(_xlpm.naa,6*INT((COLUMN()-2)/6),,6),_xlpm.ze,COUNTIF(G$8:G19,G19),_xlpm.in,INDEX(_xlpm.ar,_xlpm.ze+ROWS(_xlfn.UNIQUE(G$8:G19))),_xlpm.in)","v":"Rosi P."},null,null,null,null,"Achim",{"$f":"_xlfn.LET(_xlpm.naa,_xlfn.ANCHORARRAY(Start!$B$2),_xlpm.ar,OFFSET(_xlpm.naa,6*INT((COLUMN()-2)/6),,6),_xlpm.ze,COUNTIF(M$8:M19,M19),_xlpm.in,INDEX(_xlpm.ar,_xlpm.ze+ROWS(_xlfn.UNIQUE(M$8:M19))),_xlpm.in)","v":"Dirk"},null,null,null,null,"Siggi",{"$f":"_xlfn.LET(_xlpm.naa,_xlfn.ANCHORARRAY(Start!$B$2),_xlpm.ar,OFFSET(_xlpm.naa,6*INT((COLUMN()-2)/6),,6),_xlpm.ze,COUNTIF(S$8:S19,S19),_xlpm.in,INDEX(_xlpm.ar,_xlpm.ze+ROWS(_xlfn.UNIQUE(S$8:S19))),_xlpm.in)","v":"Christian"}]
["Erich",{"$f":"_xlfn.LET(_xlpm.naa,_xlfn.ANCHORARRAY(Start!$B$2),_xlpm.ar,OFFSET(_xlpm.naa,6*INT((COLUMN()-2)/6),,6),_xlpm.ze,COUNTIF(A$8:A20,A20),_xlpm.in,INDEX(_xlpm.ar,_xlpm.ze+ROWS(_xlfn.UNIQUE(A$8:A20))),_xlpm.in)","v":"Manuel"},null,null,null,null,"Klaus",{"$f":"_xlfn.LET(_xlpm.naa,_xlfn.ANCHORARRAY(Start!$B$2),_xlpm.ar,OFFSET(_xlpm.naa,6*INT((COLUMN()-2)/6),,6),_xlpm.ze,COUNTIF(G$8:G20,G20),_xlpm.in,INDEX(_xlpm.ar,_xlpm.ze+ROWS(_xlfn.UNIQUE(G$8:G20))),_xlpm.in)","v":"Stefan"},null,null,null,null,"Nicole",{"$f":"_xlfn.LET(_xlpm.naa,_xlfn.ANCHORARRAY(Start!$B$2),_xlpm.ar,OFFSET(_xlpm.naa,6*INT((COLUMN()-2)/6),,6),_xlpm.ze,COUNTIF(M$8:M20,M20),_xlpm.in,INDEX(_xlpm.ar,_xlpm.ze+ROWS(_xlfn.UNIQUE(M$8:M20))),_xlpm.in)","v":"Vincent"},null,null,null,null,"Kevin",{"$f":"_xlfn.LET(_xlpm.naa,_xlfn.ANCHORARRAY(Start!$B$2),_xlpm.ar,OFFSET(_xlpm.naa,6*INT((COLUMN()-2)/6),,6),_xlpm.ze,COUNTIF(S$8:S20,S20),_xlpm.in,INDEX(_xlpm.ar,_xlpm.ze+ROWS(_xlfn.UNIQUE(S$8:S20))),_xlpm.in)","v":"Rosi N."}]
["Erich",{"$f":"_xlfn.LET(_xlpm.naa,_xlfn.ANCHORARRAY(Start!$B$2),_xlpm.ar,OFFSET(_xlpm.naa,6*INT((COLUMN()-2)/6),,6),_xlpm.ze,COUNTIF(A$8:A21,A21),_xlpm.in,INDEX(_xlpm.ar,_xlpm.ze+ROWS(_xlfn.UNIQUE(A$8:A21))),_xlpm.in)","v":"Otto"},null,null,null,null,"Klaus",{"$f":"_xlfn.LET(_xlpm.naa,_xlfn.ANCHORARRAY(Start!$B$2),_xlpm.ar,OFFSET(_xlpm.naa,6*INT((COLUMN()-2)/6),,6),_xlpm.ze,COUNTIF(G$8:G21,G21),_xlpm.in,INDEX(_xlpm.ar,_xlpm.ze+ROWS(_xlfn.UNIQUE(G$8:G21))),_xlpm.in)","v":"Rosi P."},null,null,null,null,"Nicole",{"$f":"_xlfn.LET(_xlpm.naa,_xlfn.ANCHORARRAY(Start!$B$2),_xlpm.ar,OFFSET(_xlpm.naa,6*INT((COLUMN()-2)/6),,6),_xlpm.ze,COUNTIF(M$8:M21,M21),_xlpm.in,INDEX(_xlpm.ar,_xlpm.ze+ROWS(_xlfn.UNIQUE(M$8:M21))),_xlpm.in)","v":"Dirk"},null,null,null,null,"Kevin",{"$f":"_xlfn.LET(_xlpm.naa,_xlfn.ANCHORARRAY(Start!$B$2),_xlpm.ar,OFFSET(_xlpm.naa,6*INT((COLUMN()-2)/6),,6),_xlpm.ze,COUNTIF(S$8:S21,S21),_xlpm.in,INDEX(_xlpm.ar,_xlpm.ze+ROWS(_xlfn.UNIQUE(S$8:S21))),_xlpm.in)","v":"Christian"}]
["Manuel",{"$f":"_xlfn.LET(_xlpm.naa,_xlfn.ANCHORARRAY(Start!$B$2),_xlpm.ar,OFFSET(_xlpm.naa,6*INT((COLUMN()-2)/6),,6),_xlpm.ze,COUNTIF(A$8:A22,A22),_xlpm.in,INDEX(_xlpm.ar,_xlpm.ze+ROWS(_xlfn.UNIQUE(A$8:A22))),_xlpm.in)","v":"Otto"},null,null,null,null,"Stefan",{"$f":"_xlfn.LET(_xlpm.naa,_xlfn.ANCHORARRAY(Start!$B$2),_xlpm.ar,OFFSET(_xlpm.naa,6*INT((COLUMN()-2)/6),,6),_xlpm.ze,COUNTIF(G$8:G22,G22),_xlpm.in,INDEX(_xlpm.ar,_xlpm.ze+ROWS(_xlfn.UNIQUE(G$8:G22))),_xlpm.in)","v":"Rosi P."},null,null,null,null,"Vincent",{"$f":"_xlfn.LET(_xlpm.naa,_xlfn.ANCHORARRAY(Start!$B$2),_xlpm.ar,OFFSET(_xlpm.naa,6*INT((COLUMN()-2)/6),,6),_xlpm.ze,COUNTIF(M$8:M22,M22),_xlpm.in,INDEX(_xlpm.ar,_xlpm.ze+ROWS(_xlfn.UNIQUE(M$8:M22))),_xlpm.in)","v":"Dirk"},null,null,null,null,"Rosi N.",{"$f":"_xlfn.LET(_xlpm.naa,_xlfn.ANCHORARRAY(Start!$B$2),_xlpm.ar,OFFSET(_xlpm.naa,6*INT((COLUMN()-2)/6),,6),_xlpm.ze,COUNTIF(S$8:S22,S22),_xlpm.in,INDEX(_xlpm.ar,_xlpm.ze+ROWS(_xlfn.UNIQUE(S$8:S22))),_xlpm.in)","v":"Christian"}]